fUST/lending_fUST_20240201
["ID","MTS","AMOUNT","RATE_DAILY","PERIOD"]
[313070948,1706717442531,-1182.09,0.00020547,2]
[313070949,1706717442539,-1150.52,0.00020547,2]
[313070950,1706717442549,-1427.26,0.00020547,2]
[313070951,1706717442557,-500.0,0.00020547,2]
[313070952,1706717442566,-500.0,0.00020547,2]
[313070953,1706717442575,-1824.57,0.00020547,2]
[313070954,1706717442584,-3691.58,0.00020547,2]
[313070955,1706717442593,-1853.52,0.00020547,2]
[313070956,1706717442602,-500.0,0.00020547,2]
[313070957,1706717442611,-500.0,0.00020547,2]
[313070958,1706717442620,-500.0,0.00020547,2]
[313070959,1706717442629,-500.0,0.00020547,2]
[313070961,1706717442638,-13584.93,0.00020547,2]
[313070962,1706717442647,-544.72,0.00020547,2]
[313070963,1706717442656,-821.54,0.00020547,2]
[313070965,1706717442665,-649.01,0.00020547,2]
[313070966,1706717442674,-6888.74,0.00020547,2]
[313070968,1706717442683,-500.0,0.00020547,2]
[313070969,1706717442693,-656.29,0.00020547,2]
[313070971,1706717442702,-6490.96,0.00020547,2]
[313070972,1706717442711,-10101.24,0.00020547,2]
[313070973,1706717442720,-1155.68,0.00020547,2]
[313070974,1706717442730,-1175.27,0.00020547,2]
[313070975,1706717442739,-3321.3,0.00020547,2]
[313070976,1706717442748,-500.0,0.00020547,2]
[313070978,1706717442757,-1024.47,0.00020547,2]
[313070979,1706717442766,-3043.92,0.00020547,2]
[313070980,1706717442775,-500.0,0.00020547,2]
[313070981,1706717442785,-2729.74,0.00020547,2]
[313070982,1706717442794,-1385.83,0.00020547,2]
[313070983,1706717442805,-913.85,0.00020547,2]
[313070984,1706717442813,-2327.8,0.00020547,2]
[313070985,1706717442823,-500.0,0.00020547,2]
[313070986,1706717442831,-153.0,0.00020548,2]
[313070987,1706717442841,-153.0,0.00020548,2]
[313070988,1706717442849,-153.0,0.00020548,2]
[313070989,1706717442858,-153.0,0.00020548,2]
[313070990,1706717442867,-153.0,0.00020548,2]
[313070991,1706717442876,-312.9744068,0.00020548,2]
[313070992,1706717442886,-200.0,0.00020616,2]
[313070993,1706717442896,-500.0,0.00020821,2]
[313070994,1706717442905,-549.68,0.00020821,2]
[313070995,1706717442914,-547.21,0.00020821,2]
[313070996,1706717442923,-500.0,0.00020821,2]
[313070997,1706717442933,-1015.49,0.00020821,2]
[313070998,1706717442942,-500.0,0.00020821,2]
[313070999,1706717442951,-539.61078944,0.00020821,2]
[313071000,1706717442960,-500.0,0.00020821,2]
[313071001,1706717442970,-500.0,0.00020821,2]
[313071002,1706717442980,-1756.54,0.00020821,2]
[313071003,1706717442990,-500.0,0.00020821,2]
[313071005,1706717442999,-500.0,0.00020821,2]
[313071007,1706717443009,-500.0,0.00020821,2]
[313071009,1706717443018,-2759.56,0.00020821,2]
[313071010,1706717443029,-500.0,0.00020821,2]
[313071011,1706717443038,-991.7,0.00020821,2]
[313071012,1706717443048,-1055.35,0.00020821,2]
[313071013,1706717443057,-1130.01,0.00020821,2]
[313071014,1706717443067,-500.0,0.00020821,2]
[313071015,1706717443076,-500.0,0.00020821,2]
[313071016,1706717443084,-582.28,0.00020821,2]
[313071017,1706717443094,-1425.27,0.00020821,2]
[313071018,1706717443103,-909.16,0.00020821,2]
[313071019,1706717443113,-673.78,0.00020821,2]
[313071021,1706717443122,-500.0,0.00020821,2]
[313071022,1706717443131,-1917.42,0.00020821,2]
[313071023,1706717443140,-1182.09,0.00020821,2]
[313071024,1706717443149,-1150.52,0.00020821,2]
[313071025,1706717443158,-1427.26,0.00020821,2]
[313071026,1706717443168,-500.0,0.00020821,2]
[313071027,1706717443178,-500.0,0.00020821,2]
[313071029,1706717443187,-1824.57,0.00020821,2]
[313071031,1706717443196,-3691.58,0.00020821,2]
[313071032,1706717443205,-1853.52,0.00020821,2]
[313071033,1706717443214,-310.15523794,0.00020821,2]
[313071034,1706717443222,-500.0,0.00020821,2]
[313071035,1706717443234,-500.0,0.00020821,2]
[313071037,1706717443243,-500.0,0.00020821,2]
[313071038,1706717443252,-11312.48010363,0.00020821,2]
[313071040,1706717443273,-508.12,0.00020547,2]
[313071041,1706717443283,-2272.44989637,0.00020821,2]
[313071042,1706717443293,-544.72,0.00020821,2]
[313071043,1706717443306,-821.54,0.00020821,2]
[313071044,1706717443314,-649.01,0.00020821,2]
[313071045,1706717443322,-6888.74,0.00020821,2]
[313071046,1706717443332,-500.0,0.00020821,2]
[313071047,1706717443340,-656.29,0.00020821,2]
[313071048,1706717443349,-6490.96,0.00020821,2]
[313071049,1706717443359,-10101.24,0.00020821,2]
[313071050,1706717443370,-1155.68,0.00020821,2]
[313071051,1706717443380,-1175.27,0.00020821,2]
[313071052,1706717443390,-3321.3,0.00020821,2]
[313071053,1706717443399,-500.0,0.00020821,2]
[313071054,1706717443408,-1024.47,0.00020821,2]
[313071055,1706717443417,-3043.92,0.00020821,2]
[313071056,1706717443427,-500.0,0.00020821,2]
[313071057,1706717443437,-2729.74,0.00020821,2]
[313071058,1706717443445,-1385.83,0.00020821,2]
[313071059,1706717443455,-913.85,0.00020821,2]
[313071060,1706717443464,-2327.8,0.00020821,2]
[313071061,1706717443474,-324.90532343,0.00020821,2]
[313071062,1706717443484,-422.28900503,0.00020822,2]
[313071063,1706717443494,-155.33164712,0.00020822,2]
[313071064,1706717443504,-226.71177529,0.00020822,2]
[313071065,1706717443512,-500.0,0.00020822,2]
[313071066,1706717443521,-500.0,0.00020822,2]
[313071067,1706717443530,-500.0,0.00020822,2]
[313071068,1706717443540,-500.0,0.00020822,2]
[313071069,1706717443549,-500.0,0.00020822,2]
[313071070,1706717443558,-500.0,0.00020822,2]
[313071071,1706717443567,-500.0,0.00020822,2]
[313071072,1706717443576,-250.0,0.00020822,2]
[313071073,1706717443588,-500.0,0.00020822,2]
[313071074,1706717443597,-500.0,0.00020822,2]
[313071075,1706717443608,-500.0,0.00020822,2]
[313071076,1706717443617,-500.0,0.00020822,2]
[313071077,1706717443700,-500.0,0.00020822,2]
[313071078,1706717443710,-485.34101173,0.00020822,2]
[313071079,1706717443719,-500.0,0.00020822,2]
[313071080,1706717443731,-369.22592694,0.00020822,2]
[313071081,1706717443740,-620.27498651,0.00020822,2]
[313071082,1706717443750,-500.0,0.00020822,2]
[313071083,1706717443760,-500.0,0.00020822,2]
[313071084,1706717443769,-500.0,0.00020822,2]
[313071085,1706717443778,-500.0,0.00020822,2]
[313071086,1706717443787,-500.0,0.00020822,2]
[313071087,1706717443797,-500.0,0.00020822,2]
[313071088,1706717443806,-500.0,0.00020822,2]
[313071089,1706717443815,-500.0,0.00020822,2]
[313071090,1706717443824,-500.0,0.00020822,2]
[313071091,1706717443834,-500.0,0.00020822,2]
[313071092,1706717443843,-500.0,0.00020822,2]
[313071093,1706717443852,-500.0,0.00020822,2]
[313071094,1706717443862,-500.0,0.00020822,2]
[313071095,1706717443872,-500.0,0.00020822,2]
[313071096,1706717443882,-335.99316732,0.00020822,2]
[313071097,1706717443892,-500.0,0.00020822,2]
[313071098,1706717443901,-500.0,0.00020822,2]
[313071099,1706717443911,-459.48233464,0.00020822,2]
[313071100,1706717443921,-500.0,0.00020822,2]
[313071101,1706717443930,-500.0,0.00020822,2]
[313071102,1706717443939,-456.16341098,0.00020822,2]
[313071103,1706717443951,-500.0,0.00020822,2]
[313071104,1706717443961,-500.0,0.00020822,2]
[313071105,1706717443971,-500.0,0.00020822,2]
[313071106,1706717443980,-368.57400837,0.00020822,2]
[313071107,1706717443989,-500.0,0.00020822,2]
[313071108,1706717443998,-500.0,0.00020822,2]
[313071109,1706717444007,-500.0,0.00020822,2]
[313071110,1706717444017,-500.0,0.00020822,2]
[313071111,1706717444026,-500.0,0.00020822,2]
[313071112,1706717444034,-600.0,0.00020822,2]
[313071113,1706717444043,-500.0,0.00020822,2]
[313071114,1706717444052,-500.0,0.00020822,2]
[313071115,1706717444061,-500.0,0.00020822,2]
[313071116,1706717444070,-500.0,0.00020822,2]
[313071117,1706717444080,-514.1651738,0.00020822,2]
[313071118,1706717444089,-500.0,0.00020822,2]
[313071119,1706717444098,-500.0,0.00020822,2]
[313071120,1706717444107,-500.0,0.00020822,2]
[313071121,1706717444116,-500.0,0.00020822,2]
[313071122,1706717444126,-524.44257212,0.00020822,2]
[313071123,1706717444135,-465.10363133,0.00020822,2]
[313071124,1706717444144,-370.29589963,0.00020822,2]
[313071125,1706717444153,-500.0,0.00020822,2]
[313071126,1706717444164,-500.0,0.00020822,2]
[313071127,1706717444173,-500.0,0.00020822,2]
[313071128,1706717444182,-500.0,0.00020822,2]
[313071129,1706717444192,-500.0,0.00020822,2]
[313071130,1706717444201,-500.0,0.00020822,2]
[313071131,1706717444211,-500.0,0.00020822,2]
[313071132,1706717444220,-500.0,0.00020822,2]
[313071133,1706717444231,-500.0,0.00020822,2]
[313071134,1706717444240,-500.0,0.00020822,2]
[313071135,1706717444249,-500.0,0.00020822,2]
[313071136,1706717444258,-650.0,0.00020822,2]
[313071137,1706717444268,-500.0,0.00020822,2]
[313071138,1706717444277,-500.0,0.00020822,2]
[313071139,1706717444292,-500.0,0.00020822,2]
[313071140,1706717444301,-500.0,0.00020822,2]
[313071141,1706717444310,-500.0,0.00020822,2]
[313071142,1706717444319,-500.0,0.00020822,2]
[313071143,1706717444329,-500.0,0.00020822,2]
[313071144,1706717444338,-500.0,0.00020822,2]
[313071145,1706717444348,-334.32967817,0.00020822,2]
[313071146,1706717444362,-165.67032183,0.00020822,2]
[313071147,1706717444372,-500.0,0.00020822,2]
[313071148,1706717444381,-500.0,0.00020822,2]
[313071149,1706717444390,-487.01553169,0.00020822,2]
[313071150,1706717444399,-500.0,0.00020822,2]
[313071151,1706717444409,-500.0,0.00020822,2]
[313071152,1706717444419,-500.0,0.00020822,2]
[313071153,1706717444428,-500.0,0.00020822,2]
[313071154,1706717444438,-500.0,0.00020822,2]
[313071155,1706717444447,-325.67128577,0.00020822,2]
[313071156,1706717444460,-174.32871423,0.00020822,2]
[313071157,1706717444469,-539.56197716,0.00020822,2]
[313071158,1706717444483,-500.0,0.00020822,2]
[313071159,1706717444492,-500.0,0.00020822,2]
[313071160,1706717444501,-500.0,0.00020822,2]
[313071161,1706717444509,-500.0,0.00020822,2]
[313071162,1706717444518,-500.0,0.00020822,2]
[313071163,1706717444527,-500.0,0.00020822,2]
[313071164,1706717444536,-500.0,0.00020822,2]
[313071165,1706717444545,-500.0,0.00020822,2]
[313071166,1706717444554,-500.0,0.00020822,2]
[313071167,1706717444563,-500.0,0.00020822,2]
[313071168,1706717444573,-500.0,0.00020822,2]
[313071169,1706717444582,-650.0,0.00020822,2]
[313071170,1706717444591,-500.0,0.00020822,2]
[313071171,1706717444600,-70.74378688,0.00020822,2]
[313071172,1706717444613,-429.25621312,0.00020822,2]
[313071173,1706717444624,-500.0,0.00020822,2]
[313071174,1706717444635,-256.69994473,0.00020822,2]
[313071175,1706717444645,-500.0,0.00020822,2]
[313071176,1706717444654,-362.44050996,0.00020822,2]
[313071177,1706717444664,-184.13247089,0.00020822,2]
[313071178,1706717444673,-500.0,0.00020822,2]
[313071179,1706717444682,-500.0,0.00020822,2]
[313071180,1706717444691,-500.0,0.00020822,2]
[313071181,1706717444702,-500.0,0.00020822,2]
[313071182,1706717444711,-500.0,0.00020822,2]
[313071183,1706717444721,-500.0,0.00020822,2]
[313071184,1706717444731,-500.0,0.00020822,2]
[313071185,1706717444740,-500.0,0.00020822,2]
[313071186,1706717444750,-500.0,0.00020822,2]
[313071187,1706717444759,-500.0,0.00020822,2]
[313071188,1706717444770,-500.0,0.00020822,2]
[313071189,1706717444779,-500.0,0.00020822,2]
[313071190,1706717444789,-500.0,0.00020822,2]
[313071191,1706717444799,-500.0,0.00020822,2]
[313071192,1706717444808,-459.38113289,0.00020822,2]
[313071193,1706717444819,-500.0,0.00020822,2]
[313071194,1706717444829,-500.0,0.00020822,2]
[313071195,1706717444839,-1071.88664253,0.00021024,2]
[313071196,1706717444848,-5428.82045656,0.00021065,2]
[313071197,1706717444857,-3681.22086028,0.00021065,2]
[313071198,1706717445088,-500.0,0.00019178,2]
[313071199,1706717445097,-500.0,0.00019452,2]
[313071200,1706717445108,-500.0,0.00019726,2]
[313071201,1706717445119,-500.0,0.0002,2]
[313071202,1706717445128,-196.8,0.00020273,2]
[313071203,1706717445137,-508.12,0.00020821,2]
[313071204,1706717445147,-1318.77913972,0.00021065,2]
[313071205,1706717445157,-5000.0,0.00021065,2]
[313071206,1706717445169,-5000.0,0.00021065,2]
[313071207,1706717445178,-2508.98699609,0.00021065,2]
[313071208,1706717445186,-5000.0,0.00021065,2]
[313071209,1706717445195,-500.0,0.00021095,2]
[313071210,1706717445204,-549.68,0.00021095,2]
[313071211,1706717445213,-547.21,0.00021095,2]
[313071212,1706717445223,-500.0,0.00021095,2]
[313071213,1706717445234,-1015.49,0.00021095,2]
[313071214,1706717445242,-500.0,0.00021095,2]
[313071215,1706717445251,-500.0,0.00021095,2]
[313071216,1706717445260,-196.48050323,0.00021095,2]
[313071217,1706717445269,-1756.54,0.00021095,2]
[313071218,1706717445279,-500.0,0.00021095,2]
[313071219,1706717445291,-500.0,0.00021095,2]
[313071220,1706717445301,-500.0,0.00021095,2]
[313071221,1706717445310,-2759.56,0.00021095,2]
[313071222,1706717445319,-500.0,0.00021095,2]
[313071223,1706717445329,-991.7,0.00021095,2]
[313071224,1706717445338,-1055.35,0.00021095,2]
[313071225,1706717445348,-1130.01,0.00021095,2]
[313071226,1706717445357,-500.0,0.00021095,2]
[313071227,1706717445368,-243.83010469,0.00021095,2]
[313071228,1706717445377,-582.28,0.00021095,2]
[313071229,1706717445386,-909.16,0.00021095,2]
[313071230,1706717445395,-673.78,0.00021095,2]
[313071231,1706717445406,-500.0,0.00021095,2]
[313071232,1706717445416,-1917.42,0.00021095,2]
[313071233,1706717445426,-1182.09,0.00021095,2]
[313071234,1706717445436,-719.58291137,0.00021095,2]
[313071235,1706717445735,155.0,0.00017505,3]
[313071250,1706717467753,154.98450155,0.00018243,3]
[313071253,1706717483739,154.98450155,0.00018243,3]
[313071255,1706717503857,154.98450155,0.00018243,3]
[313071256,1706717523757,154.98450155,0.00017258,3]
[313071257,1706717545830,154.98450155,0.00017258,3]
[313071259,1706717561772,154.98450155,0.00017258,3]
[313071263,1706717577740,154.98450155,0.00017258,3]
[313071265,1706717595750,154.98450155,0.00017255,3]
[313071267,1706717617752,154.98450155,0.00017255,3]
[313071269,1706717635759,154.98450155,0.00017258,3]
[313071271,1706717657751,154.98450155,0.00017253,3]
[313071273,1706717673749,155.0,0.00017253,3]
[313071285,1706717695775,155.0,0.00017251,3]
[313071286,1706717717766,155.0,0.0001725,3]
[313071289,1706717735766,155.0,0.0001725,3]
[313071290,1706717755764,155.0,0.00017249,3]
[313071292,1706717773800,155.0,0.00017249,3]
[313071295,1706717793791,155.0,0.00017249,3]
[313071296,1706717813774,155.0,0.00017073,3]
[313071319,1706717895776,12208.6012589,0.0001797,2]
[313071329,1706717911615,-260.71148909,0.00018873,2]
[313071330,1706717911638,-155.0,0.00018873,2]
[313071331,1706717911661,-155.0,0.00018874,2]
[313071332,1706717911683,-180.27136489,0.00018875,2]
[313071348,1706718025362,280.0,0.00022943,7]
[313071387,1706718159790,-20902.32807036,0.00018958,2]
[313071388,1706718159817,-1996.50298693,0.00018958,2]
[313071389,1706718159859,-24350.18608873,0.00018958,2]
[313071425,1706718325867,280.0,0.00022474,7]
[313071465,1706718625194,280.0,0.00022458,7]
[313071502,1706718632371,-261.50125071,0.0001856,2]
[313071504,1706718632381,-3490.97720869,0.0001856,2]
[313071506,1706718632390,-83824.13419779,0.00018561,2]
[313071508,1706718632399,-155.0,0.00018561,2]
[313071510,1706718632408,-1017.03372915,0.00018562,2]
[313071512,1706718632419,-37015.11340777,0.00018562,2]
[313071514,1706718632428,-2042.05188148,0.00018562,2]
[313071516,1706718632438,-155.0,0.00018562,2]
[313071518,1706718632447,-20928.42010266,0.00018563,2]
[313071520,1706718632456,-243.43578923,0.00018952,2]
[313071522,1706718632465,-4819.24223768,0.00018952,2]
[313071524,1706718632473,-171.13580344,0.00018952,2]
[313071526,1706718632483,-6183.223021,0.00018955,2]
[313071528,1706718632492,-167.35010994,0.00018965,2]
[313071530,1706718632502,-353.77868055,0.00018965,2]
[313071532,1706718632511,-158.17918426,0.00018965,2]
[313071534,1706718632520,-1075.7914542,0.00018968,2]
[313071536,1706718632529,-1557.14671443,0.00018968,2]
[313071538,1706718632538,-3326.30778329,0.00018975,2]
[313071540,1706718632547,-373.13901918,0.00019,2]
[313071542,1706718632556,-2105.3133158,0.00019165,2]
[313071544,1706718632565,-203.07873463,0.00019165,2]
[313071546,1706718632574,-642.42435849,0.00019165,2]
[313071548,1706718632583,-384.64697665,0.00019165,2]
[313071550,1706718632593,-290.11392812,0.00019165,2]
[313071552,1706718632602,-199.43885115,0.00019165,2]
[313071554,1706718632611,-155.06542336,0.00019166,2]
[313071556,1706718632620,-279.52693458,0.00019166,2]
[313071558,1706718632628,-190.36761948,0.00019166,2]
[313071560,1706718632637,-268.25200075,0.00019166,2]
[313071561,1706718632647,-262.54949426,0.00019166,2]
[313071563,1706718632656,-213.595546,0.00019166,2]
[313071565,1706718632665,-619.87708183,0.00019166,2]
[313071567,1706718632674,-5175.97265662,0.00019166,2]
[313071569,1706718632683,-230.81497573,0.00019166,2]
[313071571,1706718632692,-687.53833928,0.00019167,2]
[313071573,1706718632703,-155.51073257,0.00019167,2]
[313071575,1706718632714,-1697.2441966,0.00019167,2]
[313071577,1706718632723,-198.75627546,0.00019167,2]
[313071579,1706718632731,-157.59652551,0.00019167,2]
[313071581,1706718632740,-225.62064487,0.00019167,2]
[313071583,1706718632751,-161.15953298,0.00019167,2]
[313071585,1706718632760,-159.22842716,0.00019167,2]
[313071586,1706718632770,-1243.81437298,0.00019175,2]
[313071588,1706718632781,-494.88875224,0.00019175,2]
[313071589,1706718632790,-438.76031384,0.00019175,2]
[313071591,1706718632800,-1743.00376549,0.00019175,2]
[313071593,1706718632809,-1993.40056298,0.00019176,2]
[313071594,1706718632818,-279.36857785,0.00019177,2]
[313071596,1706718632827,-500.0,0.00019178,2]
[313071598,1706718632836,-500.0,0.00019178,2]
[313071599,1706718632845,-500.0,0.00019178,2]
[313071601,1706718632856,-1810.12,0.00019178,2]
[313071603,1706718632866,-500.0,0.00019178,2]
[313071605,1706718632875,-500.0,0.00019178,2]
[313071607,1706718632884,-500.0,0.00019178,2]
[313071609,1706718632892,-416.8697277,0.00019178,2]
[313071611,1706718632901,-500.0,0.00019178,2]
[313071613,1706718632910,-500.0,0.00019178,2]
[313071615,1706718632919,-500.0,0.00019178,2]
[313071617,1706718632928,-500.0,0.00019178,2]
[313071619,1706718632938,-500.0,0.00019178,2]
[313071621,1706718632947,-1080.02,0.00019178,2]
[313071623,1706718632957,-381.24484773,0.00019178,2]
[313071736,1706718638397,-118.75515227,0.00019178,2]
[313071737,1706718638407,-500.0,0.00019178,2]
[313071739,1706718638416,-500.0,0.00019178,2]
[313071741,1706718638427,-634.13,0.00019178,2]
[313071743,1706718638436,-500.0,0.00019178,2]
[313071744,1706718638445,-500.0,0.00019178,2]
[313071745,1706718638455,-500.0,0.00019178,2]
[313071747,1706718638464,-256.76219378,0.00019178,2]
[313071749,1706718638476,-2703.19780622,0.00019178,2]
[313071750,1706718638485,-1063.72,0.00019178,2]
[313071752,1706718638494,-500.0,0.00019178,2]
[313071753,1706718638504,-254.74858988,0.00019178,2]
[313071754,1706718638516,-245.25141012,0.00019178,2]
[313071755,1706718638526,-787.31,0.00019178,2]
[313071756,1706718638536,-500.0,0.00019178,2]
[313071757,1706718638545,-206.40855964,0.00019178,2]
[313071758,1706718638556,-293.59144036,0.00019178,2]
[313071759,1706718638565,-500.0,0.00019178,2]
[313071760,1706718638574,-500.0,0.00019178,2]
[313071761,1706718638583,-500.0,0.00019178,2]
[313071762,1706718638592,-500.0,0.00019178,2]
[313071763,1706718638603,-500.0,0.00019178,2]
[313071764,1706718638613,-833.70361194,0.00019178,2]
[313071765,1706718638628,-325.83638806,0.00019178,2]
[313071766,1706718638638,-500.0,0.00019178,2]
[313071767,1706718638649,-500.0,0.00019178,2]
[313071768,1706718638660,-500.0,0.00019178,2]
[313071769,1706718638671,-500.0,0.00019178,2]
[313071770,1706718638679,-558.02,0.00019178,2]
[313071771,1706718638690,-500.0,0.00019178,2]
[313071772,1706718638699,-500.0,0.00019178,2]
[313071773,1706718638713,-920.42,0.00019178,2]
[313071774,1706718638722,-500.0,0.00019178,2]
[313071775,1706718638731,-645.71,0.00019178,2]
[313071776,1706718638740,-500.0,0.00019178,2]
[313071777,1706718638750,-1267.67,0.00019178,2]
[313071778,1706718638759,-1968.27,0.00019178,2]
[313071779,1706718638768,-424.25997704,0.00019178,2]
[313071780,1706718638777,-1427.26,0.00019178,2]
[313071781,1706718638787,-500.0,0.00019178,2]
[313071782,1706718638796,-2089.44,0.00019178,2]
[313071783,1706718638807,-1293.64,0.00019178,2]
[313071784,1706718638817,-500.0,0.00019178,2]
[313071785,1706718638826,-606.73,0.00019178,2]
[313071786,1706718638835,-500.0,0.00019178,2]
[313071787,1706718638844,-500.0,0.00019178,2]
[313071788,1706718638853,-604.0,0.00019178,2]
[313071789,1706718638863,-500.0,0.00019178,2]
[313071790,1706718638872,-500.0,0.00019178,2]
[313071791,1706718638882,-13490.24,0.00019178,2]
[313071792,1706718638891,-1927.15,0.00019178,2]
[313071793,1706718638900,-500.0,0.00019178,2]
[313071794,1706718638910,-3691.58,0.00019178,2]
[313071795,1706718638920,-1042.02,0.00019178,2]
[313071796,1706718638928,-500.0,0.00019178,2]
[313071797,1706718638938,-500.0,0.00019178,2]
[313071798,1706718638947,-522.59,0.00019178,2]
[313071799,1706718638956,-500.0,0.00019178,2]
[313071800,1706718638965,-500.0,0.00019178,2]
[313071801,1706718638974,-522.02,0.00019178,2]
[313071802,1706718638983,-1107.53,0.00019178,2]
[313071803,1706718638992,-500.0,0.00019178,2]
[313071804,1706718639002,-6601.71,0.00019178,2]
[313071805,1706718639011,-647.94,0.00019178,2]
[313071806,1706718639020,-6260.44,0.00019178,2]
[313071807,1706718639030,-1126.3,0.00019178,2]
[313071808,1706718639039,-981.78,0.00019178,2]
[313071809,1706718639048,-628.95,0.00019178,2]
[313071810,1706718639057,-500.0,0.00019178,2]
[313071811,1706718639066,-3030.0,0.00019178,2]
[313071812,1706718639075,-2616.0,0.00019178,2]
[313071813,1706718639084,-500.0,0.00019178,2]
[313071814,1706718639094,-9855.03,0.00019178,2]
[313071815,1706718639102,-2230.8,0.00019178,2]
[313071816,1706718639111,-500.0,0.00019178,2]
[313071817,1706718639121,-1328.09,0.00019178,2]
[313071818,1706718639130,-453.1775686,0.00019178,2]
[313071819,1706718639139,-3182.92,0.00019178,2]
[313071820,1706718639148,-500.0,0.00019178,2]
[313071821,1706718639158,-500.0,0.00019178,2]
[313071822,1706718639167,-500.0,0.00019178,2]
[313071823,1706718639176,-1443.4,0.00019178,2]
[313071824,1706718639185,-500.0,0.00019178,2]
[313071825,1706718639194,-937.16,0.00019178,2]
[313071826,1706718639203,-500.0,0.00019178,2]
[313071827,1706718639212,-500.0,0.00019178,2]
[313071828,1706718639221,-165.629364,0.00019178,2]
[313071829,1706718639230,-155.33653016,0.0001945,2]
[313071830,1706718639240,-167.15177222,0.0001945,2]
[313071831,1706718639249,-228.15004673,0.00019451,2]
[313071832,1706718639258,-500.0,0.00019451,2]
[313071833,1706718639267,-500.0,0.00019451,2]
[313071834,1706718639286,-500.0,0.00019451,2]
[313071835,1706718639297,-500.0,0.00019452,2]
[313071836,1706718639308,-500.0,0.00019452,2]
[313071837,1706718639317,-500.0,0.00019452,2]
[313071838,1706718639327,-1810.12,0.00019452,2]
[313071839,1706718639337,-500.0,0.00019452,2]
[313071840,1706718639347,-500.0,0.00019452,2]
[313071841,1706718639358,-500.0,0.00019452,2]
[313071842,1706718639367,-500.0,0.00019452,2]
[313071843,1706718639377,-500.0,0.00019452,2]
[313071844,1706718639387,-500.0,0.00019452,2]
[313071845,1706718639396,-500.0,0.00019452,2]
[313071846,1706718639406,-342.75143032,0.00019452,2]
[313071847,1706718639416,-1080.02,0.00019452,2]
[313071848,1706718639426,-500.0,0.00019452,2]
[313071849,1706718639435,-500.0,0.00019452,2]
[313071850,1706718639445,-500.0,0.00019452,2]
[313071851,1706718639455,-634.13,0.00019452,2]
[313071852,1706718639464,-500.0,0.00019452,2]
[313071853,1706718639473,-542.32133494,0.00019452,2]
[313071854,1706718639483,-500.0,0.00019452,2]
[313071855,1706718639493,-2959.96,0.00019452,2]
[313071856,1706718639502,-1063.72,0.00019452,2]
[313071857,1706718639513,-500.0,0.00019452,2]
[313071858,1706718639522,-500.0,0.00019452,2]
[313071859,1706718639532,-787.31,0.00019452,2]
[313071860,1706718639541,-500.0,0.00019452,2]
[313071861,1706718639551,-500.0,0.00019452,2]
[313071862,1706718639562,-500.0,0.00019452,2]
[313071863,1706718639572,-1159.54,0.00019452,2]
[313071864,1706718639581,-500.0,0.00019452,2]
[313071865,1706718639590,-500.0,0.00019452,2]
[313071866,1706718639599,-500.0,0.00019452,2]
[313071867,1706718639609,-500.0,0.00019452,2]
[313071868,1706718639619,-558.02,0.00019452,2]
[313071869,1706718639631,-500.0,0.00019452,2]
[313071870,1706718639640,-920.42,0.00019452,2]
[313071871,1706718639650,-500.0,0.00019452,2]
[313071872,1706718639659,-645.71,0.00019452,2]